bitfinex-derivatives/quotes_ETHF0:USTF0_20240905
["timestamp","ask_amount","ask_price","bid_price","bid_amount"]
[1725508566782,4.15950255,2407.5,2407.4,0.29075]
[1725508566981,4.37865938,2407.5,2407.4,0.29075]
[1725508568793,4.37865938,2407.5,2407.1,2.87]
[1725508568992,4.15950255,2407.5,2407.3,0.29076]
[1725508569187,4.15950255,2407.5,2407.2,0.29077]
[1725508569379,4.15950255,2407.5,2407.1,2.87]
[1725508569380,4.15950255,2407.5,2407.1,0.29078]
[1725508569583,3.32492821,2407.4,2407.2,0.29077]
[1725508569789,1.0237,2407.3,2407.2,0.29077]
[1725508569981,2.0635,2407.3,2407.2,0.29077]
[1725508573993,2.0635,2407.3,2407.2,1.49077]
[1725508574197,3.10570255,2407.5,2407.2,1.49077]
[1725508574394,2.1175,2407.4,2407.2,1.49077]
[1725508575190,2.1175,2407.4,2407.2,1.2]
[1725508575399,2.1175,2407.4,2407.2,1.49077]
[1725508575996,2.1175,2407.4,2407.1,1.49078]
[1725508576297,2.70149785,2407.2,2407.1,1.49078]
[1725508589810,2.70149785,2407.3,2407.2,0.29077]
[1725508590103,2.70149785,2407.3,2407.2,1.49077]
[1725508590902,2.15614608,2407.3,2407.2,15.57991]
[1725508591101,2.15614608,2407.5,2407.4,0.29075]
[1725508591314,2.70149785,2407.5,2407.4,1.49075]
[1725508591612,3.10570255,2407.7,2407.4,1.49075]
[1725508591802,4.17210255,2407.7,2407.5,0.29074]
[1725508592002,1.0474,2407.6,2407.5,0.29074]
[1725508592407,4.17210255,2407.7,2407.5,0.29074]
[1725508592408,3.10570255,2407.7,2407.5,0.29074]
[1725508592612,4.15310255,2407.8,2407.5,0.29074]
[1725508594914,0.21825576,2407.7,2407.5,0.29074]
[1725508595102,3.10570255,2407.7,2407.5,0.29074]
[1725508595307,3.10570255,2407.7,2407.6,0.29073]
[1725508595816,3.10570255,2407.7,2407.5,0.29073]
[1725508596018,3.10570255,2407.7,2406.9,4.4152853]
[1725508596218,2.69302922,2407.3,2407.1,0.29079]
[1725508596518,3.69832922,2407.2,2407.1,0.29079]
[1725508597318,2.69302922,2407.2,2407.1,0.29079]
[1725508602618,1.9759,2407.4,2407.3,0.29076]
[1725508602823,6.83111965,2407.7,2407.3,0.29076]
[1725508602824,3.10570255,2407.6,2407.3,1.2]
[1725508603023,3.10570255,2407.6,2407.5,1.49074]
[1725508603319,6.17830255,2407.7,2407.5,1.49074]
[1725508603719,3.32413379,2407.6,2407.5,1.49074]
[1725508603924,6.17830255,2407.7,2407.5,1.49074]
[1725508604527,5.11080255,2407.7,2407.6,0.29073]
[1725508604824,5.32920267,2407.7,2407.6,0.29073]
[1725508605226,5.11080255,2407.7,2407.6,0.29073]
[1725508605722,5.32919277,2407.7,2407.6,0.29073]
[1725508606026,2.22349022,2407.7,2407.6,0.29073]
[1725508606219,2.0051,2407.7,2407.6,0.29073]
[1725508609727,6.37703796,2407.7,2407.4,0.29074]
[1725508609912,5.11080255,2407.7,2407.4,0.29074]
[1725508610117,8.31860255,2407.7,2407.4,0.29074]
[1725508611020,0.21824926,2407.6,2407.5,0.29074]
[1725508611215,3.32395181,2407.6,2407.5,0.29074]
[1725508611727,7.47755181,2407.6,2407.1,1.0703]
[1725508612022,2.69035434,2407.2,2407.1,1.49079]
[1725508613429,3.10570255,2407.4,2407.2,0.29077]
[1725508614028,0.9787,2407.3,2407.2,0.29077]
[1725508615226,0.9787,2407.3,2407.1,1.2]
[1725508615227,0.9787,2407.3,2407.1,0.29078]
[1725508615531,1.0649,2407.2,2407.1,0.29078]
[1725508619247,0.29082,2406.8,2406.7,0.00622678]
[1725508619442,0.29082,2406.8,2406.1,0.2909]
[1725508619443,8.78244999,2406.8,2406.1,0.2909]
[1725508619640,2.68788239,2406.3,2406.2,0.29089]
[1725508620236,2.68788239,2406.3,2406.1,0.2909]
[1725508620443,3.13929343,2406.2,2406.1,0.2909]
[1725508620640,4.19769343,2406.2,2406.0,0.29713678]
[1725508620835,2.15089343,2406.1,2406.0,0.29713678]
[1725508621440,3.76244192,2406.1,2406.0,0.29713678]
[1725508621645,1.61154849,2406.1,2406.0,0.29713678]
[1725508622349,4.19769343,2406.2,2406.0,0.29713678]
[1725508622544,1.61147532,2406.1,2406.0,0.29713678]
[1725508624548,3.65827532,2406.2,2406.0,0.29713678]
[1725508625341,3.65827532,2406.2,2406.1,40.8]
[1725508626346,2.0468,2406.2,2406.1,40.8]
[1725508627946,2.0468,2406.2,2406.1,41.09091]
[1725508628546,4.8255021,2406.4,2406.1,40.8]
[1725508628745,4.8255021,2406.4,2406.1,42.8223]
[1725508629047,4.8255021,2406.4,2406.2,0.29089]
[1725508629246,4.8255021,2406.4,2406.3,0.29088]
[1725508630049,4.8255021,2406.4,2406.1,40.8]
[1725508630348,1.60397583,2406.3,2406.1,0.29091]
[1725508630550,1.60397583,2406.3,2406.0,0.29713678]
[1725508630753,1.60397583,2406.3,2406.1,41.09091]
[1725508630942,1.60397583,2406.3,2406.1,40.8]
[1725508631544,1.60397583,2406.3,2406.1,41.0909]
[1725508631752,3.21402678,2406.4,2406.2,0.29089]
[1725508632256,3.21402678,2406.4,2406.1,40.8]
[1725508632756,3.21402678,2406.4,2406.2,0.2909]
[1725508633058,3.21402678,2406.4,2406.1,40.8]
[1725508633249,3.21402678,2406.4,2406.2,0.29089]
[1725508633845,3.21402678,2406.4,2406.1,40.8]
[1725508634047,3.21402678,2406.4,2406.2,0.29089]
[1725508635150,0.00622678,2406.4,2406.2,0.29089]
[1725508635949,0.00622678,2406.4,2406.3,0.29088]
[1725508636555,0.00622678,2406.4,2406.2,0.29089]
[1725508637353,0.00622678,2406.4,2406.0,0.00622678]
[1725508637658,1.35745076,2406.1,2406.0,0.00622678]
[1725508637956,1.89488583,2406.1,2406.0,0.00622678]
[1725508638146,3.99718583,2406.1,2406.0,0.00622678]
[1725508638344,3.45881453,2406.1,2406.0,0.00622678]
[1725508639556,3.16790453,2406.1,2406.0,0.00622678]
[1725508639756,1.0507,2406.1,2406.0,0.29714678]
[1725508639958,1.07183131,2406.4,2406.2,0.29089]
[1725508640256,2.06253131,2406.4,2406.2,0.29089]
[1725508641251,2.06253131,2406.4,2406.1,2.0904]
[1725508641457,0.99692678,2406.4,2406.2,0.29089]
[1725508642659,0.99692678,2406.4,2406.2,0.2909]
[1725508643354,0.99692678,2406.4,2406.0,0.00622678]
[1725508643554,0.29095,2405.8,2405.3,3.0725]
[1725508643852,6.2847,2405.7,2405.3,3.0725]
[1725508644459,3.0769,2405.7,2405.4,0.29098]
[1725508647956,3.0769,2405.7,2405.3,3.07872678]
[1725508648157,3.0769,2405.7,2405.4,0.29099]
[1725508649963,3.0769,2405.7,2405.3,3.07872678]
[1725508650156,3.0769,2405.7,2405.4,0.29099]
[1725508650560,0.29094,2405.9,2405.4,0.29099]
[1725508650760,0.981,2405.8,2405.4,0.29099]
[1725508650960,2.33124583,2406.2,2405.4,0.29099]
[1725508650961,1.06601478,2406.2,2405.7,2.87]
[1725508651154,4.266,2406.3,2405.9,2.87]
[1725508651356,5.247,2406.3,2405.8,44.29154]
[1725508651758,5.247,2406.3,2405.9,0.29093]
[1725508652260,8.117,2406.3,2405.9,0.29093]
[1725508652562,9.47390478,2406.3,2405.9,0.29093]
[1725508652761,9.47390478,2406.3,2405.8,43.26724]
[1725508653069,9.47390478,2406.3,2405.8,41.8757]
[1725508653070,0.2909,2406.2,2405.8,41.8757]
[1725508653367,1.35692478,2406.1,2405.7,0.29095]
[1725508653665,3.2078,2406.0,2405.7,0.29095]
[1725508653858,3.2078,2406.0,2405.5,43.9165]
[1725508653859,3.2078,2406.0,2405.8,0.29094]
[1725508654158,1.0914,2405.9,2405.8,0.29094]
[1725508655065,1.06601478,2406.2,2405.9,0.29093]
[1725508655363,2.09021478,2406.2,2405.9,0.29093]
[1725508656253,2.09021478,2406.2,2405.5,3.1165]
[1725508656462,1.06601478,2406.1,2406.0,0.29091]
[1725508656758,1.0242,2406.2,2406.0,0.29091]
[1725508656759,2.09021478,2406.2,2406.0,0.29091]
[1725508656964,1.06601478,2406.2,2406.1,0.29091]
[1725508657160,5.33201478,2406.3,2406.2,0.2909]
[1725508657764,5.86997583,2406.3,2406.1,0.29091]
[1725508658061,1.06765397,2406.2,2406.1,0.29091]
[1725508658365,1.60397583,2406.2,2406.1,0.29091]
[1725508658566,1.60397583,2406.2,2405.5,3.1165]
[1725508658867,4.27568979,2406.0,2405.9,0.29092]
[1725508659263,5.27358979,2406.0,2405.9,0.29092]
[1725508659460,8.3617,2406.0,2405.8,0.29094]
[1725508659665,1.60264519,2405.9,2405.8,0.29094]
[1725508661470,7.35279343,2406.0,2405.8,0.29094]
[1725508661660,1.60366607,2405.9,2405.8,0.29094]
[1725508661858,7.35279343,2406.0,2405.8,0.29094]
[1725508662056,1.603159,2405.9,2405.8,0.29094]
[1725508662373,2.15089343,2405.9,2405.8,0.29094]
[1725508662562,0.29093,2405.9,2405.6,0.29096]
[1725508662761,3.17793167,2405.8,2405.6,0.29096]
[1725508663073,2.13833167,2405.7,2405.6,0.29096]
[1725508663365,2.13833167,2405.7,2405.5,1.30037]
[1725508663572,1.058,2405.6,2405.5,1.30037]
[1725508663965,1.058,2405.6,2405.5,1.0094]
[1725508664167,1.058,2405.6,2405.4,0.29098]
[1725508664168,5.2148,2405.6,2405.4,0.29099]
[1725508664367,3.19633167,2405.6,2405.4,0.29099]
[1725508664575,3.19633167,2405.6,2405.5,0.29098]
[1725508665379,1.058,2405.6,2405.5,0.29098]
[1725508667372,2.13833167,2405.7,2405.6,0.29097]
[1725508667775,3.15583167,2405.7,2405.6,0.29097]
[1725508668883,6.36363167,2405.7,2405.6,0.29097]
[1725508669975,6.36363167,2405.7,2405.5,0.29097]
[1725508670473,6.36363167,2405.7,2405.6,0.29097]
[1725508670874,6.36363167,2405.7,2405.4,0.29099]
[1725508671074,2.13833167,2405.6,2405.4,0.29099]
[1725508671275,2.13833167,2405.5,2405.4,0.29099]
[1725508673171,2.13969774,2405.5,2405.4,0.29099]
[1725508675685,5.34749774,2405.5,2405.4,0.29099]
[1725508676977,0.29099,2405.4,2405.3,0.00622678]
[1725508677179,0.29099,2405.4,2404.8,1.34676]
[1725508677180,0.29104,2405.1,2404.8,1.34676]
[1725508677384,1.60486685,2404.9,2404.8,1.34676]
[1725508677782,1.60486685,2404.9,2404.8,1.0557]
[1725508677982,2.66506685,2404.9,2404.8,1.34676]
[1725508678485,1.0602,2404.9,2404.8,1.34676]
[1725508678685,1.60486685,2404.9,2404.8,1.34676]
[1725508680874,1.07212552,2404.9,2404.8,1.34676]
[1725508681087,1.07212552,2404.9,2404.8,5.50516]
[1725508681983,1.07212552,2404.9,2404.8,11.50516]
[1725508682180,0.88212552,2405.0,2404.9,0.29105]
[1725508682376,0.8883523,2405.1,2405.0,0.29104]
[1725508682582,0.00622678,2405.1,2405.0,4.44944]
[1725508682786,0.00622678,2405.1,2405.0,10.44944]
[1725508683180,0.00622678,2405.1,2405.0,13.31944]
[1725508683986,0.00622678,2405.1,2405.0,14.04705]
[1725508684288,1.60486685,2405.5,2405.4,0.29099]
[1725508688595,2.13982247,2405.6,2405.4,0.29099]
[1725508689788,2.13982247,2405.6,2405.5,0.29098]
[1725508691790,3.77080487,2405.7,2405.5,0.29098]
[1725508693286,2.14722983,2405.6,2405.5,0.29098]
[1725508695486,0.00622678,2405.7,2405.6,0.29097]
[1725508695886,3.73520487,2405.7,2405.6,0.29097]
[1725508696888,3.73520487,2405.7,2405.4,40.8]
[1725508696889,3.73520487,2405.7,2405.5,0.29097]
[1725508697088,3.15951759,2405.6,2405.5,0.29097]
[1725508697489,1.0123,2405.6,2405.5,0.29097]
[1725508697686,3.16150344,2405.6,2405.5,0.29097]
[1725508697890,1.0123,2405.6,2405.5,0.29097]
[1725508698992,1.0123,2405.6,2405.4,0.29099]
[1725508699190,2.147826,2405.5,2405.4,0.29099]
[1725508705398,3.68707809,2405.6,2405.4,0.29099]
[1725508705806,3.68707809,2405.6,2405.3,1.0966]
[1725508705807,3.68707809,2405.6,2405.5,0.29098]
[1725508706001,3.68707809,2405.6,2405.4,0.29099]
[1725508706392,2.67477809,2405.5,2405.4,0.29099]
[1725508706904,3.68707809,2405.6,2405.4,0.29099]
[1725508707301,2.67477809,2405.5,2405.3,1.0966]
[1725508707605,2.67477809,2405.5,2404.9,0.20947513]
[1725508707606,3.73767809,2405.4,2405.1,0.29102]
[1725508707810,2.14918065,2405.2,2405.1,0.29102]
[1725508708011,2.14918065,2405.2,2405.1,41.09102]
[1725508708214,2.14918065,2405.2,2405.1,45.24862]
[1725508708507,1.0316,2405.2,2405.1,4.44862]
[1725508708699,3.18036391,2405.2,2405.1,4.44862]
[1725508709105,3.18036391,2405.2,2405.0,1.35673]
[1725508709402,2.14876391,2405.1,2405.0,1.35673]
[1725508710805,3.18036391,2405.2,2405.1,0.29103]
[1725508712400,2.14876391,2405.2,2405.1,0.29103]
[1725508713824,2.14876391,2405.2,2404.6,0.00622678]
[1725508713825,4.4078,2405.2,2404.6,0.00622678]
[1725508714013,2.14657735,2404.9,2404.8,0.29106]
[1725508714416,4.29187735,2404.9,2404.8,0.29106]
[1725508714714,4.29187735,2404.9,2404.7,0.29107]
[1725508715014,4.29187735,2404.9,2404.8,0.29106]
[1725508717812,3.21507735,2404.9,2404.8,0.29106]
[1725508718011,1.0685,2404.9,2404.8,0.29106]
[1725508718309,2.67795301,2404.9,2404.8,0.29106]
[1725508718819,1.60945301,2404.9,2404.8,0.29106]
[1725508719009,1.60945301,2404.9,2404.8,4.44946]
[1725508719318,1.60945301,2405.0,2404.9,0.29105]
[1725508719517,1.60945301,2405.0,2404.9,1.30605]
[1725508719715,2.14657735,2405.1,2405.0,0.29104]
[1725508720316,18.38197735,2405.1,2404.6,0.00622678]
[1725508720511,1.60942072,2404.7,2404.6,0.29730678]
[1725508720813,2.14657735,2404.8,2404.7,0.29108]
[1725508721015,1.0931,2404.7,2404.6,0.00622678]
[1725508721312,1.0931,2404.7,2404.6,0.29730678]
[1725508721514,2.1286,2404.7,2404.6,0.00622678]
[1725508721708,4.27517735,2404.7,2404.6,0.00622678]
[1725508722414,2.1286,2404.7,2404.6,0.00622678]
[1725508723420,3.73715244,2404.7,2404.6,0.29731678]
[1725508724509,1.60855244,2404.7,2404.6,0.29731678]
[1725508724711,4.31697735,2404.9,2404.7,0.29108]
[1725508725428,4.31697735,2404.9,2404.6,0.29730678]
[1725508725718,1.60843614,2404.7,2404.6,0.29730678]
[1725508731521,1.60843614,2404.8,2404.7,0.29108]
[1725508731714,1.60843614,2404.8,2404.6,0.00622678]
[1725508731715,2.1704,2404.9,2404.8,0.29106]
[1725508732120,2.1704,2404.9,2404.7,0.29107]
[1725508732423,1.60721855,2404.8,2404.7,0.29107]
[1725508734920,3.77761855,2404.9,2404.8,0.29106]
[1725508738116,2.1704,2404.9,2404.8,0.29106]
[1725508738318,2.1704,2404.9,2404.6,0.00622678]
[1725508738517,1.60726774,2404.7,2404.6,0.29730678]
[1725508738720,1.60726774,2404.8,2404.7,0.29108]
[1725508739631,2.1704,2404.9,2404.6,0.00622678]
[1725508739826,3.77766391,2404.9,2404.7,0.29107]
[1725508740022,1.60726391,2404.8,2404.7,0.29107]
[1725508740532,3.77766391,2404.9,2404.8,0.29106]
[1725508742729,1.60726391,2405.0,2404.8,6.37713]
[1725508743033,2.67477809,2405.3,2404.9,5.3584]
[1725508743034,1.60726391,2405.2,2404.9,5.3584]
[1725508743330,1.60726391,2405.2,2405.1,0.29103]
[1725508745330,2.80726391,2405.2,2405.0,0.29103]
[1725508745531,1.60821274,2405.1,2405.0,0.29103]
[1725508745928,3.34657735,2405.2,2405.0,0.29103]
[1725508746527,1.60826179,2405.1,2405.0,0.29103]
[1725508751236,2.14657735,2405.2,2405.0,0.29103]
[1725508751433,2.14657735,2405.1,2405.0,0.29103]
[1725508751629,2.14813601,2405.1,2405.0,0.29103]
[1725508751833,2.14816922,2405.1,2405.0,0.29103]
[1725508754340,2.67477809,2405.2,2405.0,0.29103]
[1725508755442,5.3355,2405.3,2405.0,0.29103]
[1725508755443,2.15073385,2405.1,2405.0,0.29103]
[1725508756046,2.15073385,2405.2,2405.1,0.29103]
[1725508757047,2.15073385,2405.2,2405.1,2.46603]
[1725508758242,2.15073385,2405.2,2405.1,3.51073]
[1725508759147,3.76214671,2405.3,2405.2,0.29102]
[1725508759350,1.61141286,2405.3,2405.2,0.29102]
[1725508761046,1.61141286,2405.3,2405.2,4.44862]
[1725508761244,1.61141286,2405.3,2405.2,0.29102]
[1725508761443,1.61141286,2405.3,2405.1,7.6275]
[1725508761444,1.61141286,2405.4,2405.3,0.291]
[1725508761653,1.61141286,2405.4,2404.9,0.86191541]
[1725508761654,2.15073385,2405.4,2405.2,0.29102]
[1725508762057,2.15073385,2405.3,2405.2,0.29102]
[1725508762253,1.61064976,2405.3,2405.2,0.29101]
[1725508762454,2.15073385,2405.4,2405.2,0.29101]
[1725508763056,2.15073385,2405.4,2405.3,0.291]
[1725508764457,2.15073385,2405.4,2405.0,1.074]
[1725508764659,1.60987073,2405.1,2404.9,1.2]
[1725508764959,1.60987073,2405.1,2404.9,0.29105]
[1725508764960,1.0515,2405.0,2404.9,0.29105]
[1725508765159,2.1022,2405.0,2404.9,0.29105]
[1725508766258,1.0507,2405.0,2404.9,1.49105]
[1725508766566,1.60987073,2405.2,2405.1,0.29103]
[1725508766757,2.66057073,2405.2,2405.1,0.29103]
[1725508769351,1.0507,2405.2,2405.1,0.29103]
[1725508771166,2.66057073,2405.2,2405.1,0.29103]
[1725508772059,2.66057073,2405.2,2404.7,3.2078]
[1725508772060,1.0507,2405.2,2404.7,3.2078]
[1725508772265,1.60968938,2405.0,2404.9,0.29105]
[1725508773461,1.60968938,2405.0,2404.8,0.29106]
[1725508773667,1.60968938,2405.0,2404.6,0.00622678]
[1725508773668,3.64228938,2404.9,2404.6,0.00622678]
[1725508773864,3.64228938,2404.9,2404.7,0.29108]
[1725508774071,1.60968938,2404.8,2404.7,0.29108]
[1725508774758,3.64228938,2404.9,2404.8,0.29106]
[1725508775159,2.0326,2404.9,2404.8,0.29106]
[1725508778160,4.18333385,2404.9,2404.8,0.29106]
[1725508778366,2.0326,2404.9,2404.8,0.29106]
[1725508778561,3.64386185,2404.9,2404.8,0.29106]
[1725508778868,1.61126185,2404.9,2404.8,1.49106]
[1725508780568,1.61126185,2404.9,2404.8,5.64946]
[1725508780869,1.61126185,2405.0,2404.9,0.29105]
[1725508781062,1.61126185,2405.0,2404.9,2.57735]
[1725508782166,1.61126185,2405.1,2405.0,0.29104]
[1725508782569,1.61126185,2405.2,2405.1,0.29103]
[1725508782961,2.66556185,2405.2,2405.1,4.44863]
[1725508783472,2.66556185,2405.2,2405.1,5.47043]
[1725508783763,1.61126185,2405.2,2405.1,6.19801]
[1725508783972,1.61126185,2405.3,2405.2,0.29102]
[1725508784166,1.61126185,2405.3,2405.2,1.49102]
[1725508789369,1.61126185,2405.4,2405.3,0.291]
[1725508789574,1.61126185,2405.4,2405.3,5.5042]
[1725508790374,1.0543,2405.5,2405.4,0.29099]
[1725508790375,1.61126185,2405.5,2405.4,0.29099]
[1725508790574,1.61126185,2405.5,2405.4,1.49099]
[1725508792967,2.62486185,2405.5,2405.4,1.49099]
[1725508793279,1.0136,2405.5,2405.4,1.49099]
[1725508793675,4.81906185,2405.6,2405.4,1.49099]
[1725508793676,4.81906185,2405.6,2405.5,0.29098]
[1725508793885,4.81906185,2405.6,2405.5,1.36078]
[1725508794176,4.81906185,2405.6,2405.5,42.16078]
[1725508795071,1.61126185,2405.6,2405.5,42.16078]
[1725508795573,3.17056063,2405.7,2405.6,0.29097]
[1725508795574,2.63108863,2405.7,2405.6,0.29097]
[1725508797078,2.63108863,2405.7,2405.6,1.69537748]
[1725508797281,0.00622678,2405.7,2405.6,1.69537748]
[1725508797879,0.00622678,2405.7,2405.6,5.85217748]
[1725508800381,0.00622678,2405.7,2405.6,12.57960748]
[1725508800882,0.00622678,2405.7,2405.6,8.42280748]
[1725508801070,0.00622678,2405.7,2405.6,7.69537748]
[1725508801380,0.00622678,2405.7,2405.5,0.29097]
[1725508801685,1.61126185,2405.6,2405.2,1.49101]
[1725508801877,1.60958268,2405.4,2405.1,4.69882]
[1725508802077,1.0465,2405.3,2405.1,4.69882]
[1725508802383,2.65608268,2405.3,2405.0,0.29103]
[1725508802578,2.65608268,2405.3,2404.9,1.2]
[1725508802579,2.65608268,2405.3,2405.1,0.29103]
[1725508802878,1.60878493,2405.4,2405.2,1.49102]
[1725508803583,1.60878493,2405.4,2405.2,0.29102]
[1725508803780,1.60878493,2405.3,2405.2,0.29102]
[1725508804077,1.60878493,2405.4,2405.2,0.29102]
[1725508804290,1.60878493,2405.3,2405.2,0.29102]
[1725508804881,1.60878493,2405.4,2405.2,0.29102]
[1725508805077,4.81658493,2405.3,2404.9,40.8]
[1725508805281,4.81658493,2405.3,2404.7,3.2078]
[1725508805282,1.60878493,2405.0,2404.7,3.2078]
[1725508805580,3.1707,2404.9,2404.8,1.49106]
[1725508805786,2.1555,2404.9,2404.8,1.49106]
[1725508806078,1.60878493,2405.1,2404.9,0.29105]
[1725508806278,2.15073385,2405.3,2404.7,3.2078]
[1725508806279,2.69938493,2405.0,2404.7,3.2078]
[1725508806487,2.69938493,2405.0,2404.8,0.29106]
[1725508807285,1.0317,2404.9,2404.7,3.2078]
[1725508807479,1.0317,2404.9,2404.7,3.49887]
[1725508807681,2.64048493,2404.9,2404.7,3.49887]
[1725508808182,1.0317,2404.9,2404.8,0.29106]
[1725508808677,1.0906,2405.0,2404.9,0.29105]
[1725508809074,5.249,2405.0,2404.6,0.00622678]
[1725508809277,6.19822493,2405.0,2404.6,0.00622678]
[1725508809581,1.60878493,2404.9,2404.6,0.00622678]
[1725508809877,1.60878493,2404.8,2404.6,0.00622678]
[1725508810076,1.0725,2404.7,2404.6,0.00622678]
[1725508810277,1.0725,2404.7,2404.6,0.29731678]
[1725508812083,1.0725,2404.7,2404.6,0.00622678]
[1725508813191,1.0725,2404.7,2404.6,0.29731678]
[1725508813487,1.60878493,2404.9,2404.8,0.29106]
[1725508813786,6.91378493,2405.0,2404.9,0.29105]
[1725508814488,5.305,2405.0,2404.9,0.29105]
[1725508814694,5.305,2405.0,2404.8,0.29106]
[1725508814883,5.305,2405.0,2404.9,0.29105]
[1725508815385,6.91378493,2405.0,2404.8,0.29106]
[1725508815984,6.91378493,2405.0,2404.6,2.87622678]
[1725508816381,6.91378493,2405.0,2404.9,0.29105]
[1725508816891,1.60878493,2405.2,2405.1,0.29103]
[1725508817080,1.60878493,2405.3,2405.2,0.29102]
[1725508817383,1.60878493,2405.4,2405.3,0.291]
[1725508817778,5.76638493,2405.4,2405.3,0.291]
[1725508817983,1.60878493,2405.4,2405.0,2.87]
[1725508818987,1.60878493,2405.4,2405.3,0.291]
[1725508820290,5.76638493,2405.4,2405.2,0.29101]
[1725508820485,1.60878493,2405.4,2405.2,0.29101]
[1725508820786,1.60878493,2405.4,2405.3,0.291]
[1725508820977,1.60878493,2405.4,2405.2,0.29101]
[1725508821183,1.60878493,2405.4,2405.3,0.291]
[1725508821385,1.60878493,2405.4,2404.7,1.13574768]
[1725508821691,1.60878493,2405.0,2404.9,0.29105]
[1725508822592,2.64808493,2405.0,2404.7,0.29108]
[1725508822893,2.64808493,2405.0,2404.6,0.29730678]
[1725508823092,1.60878493,2404.9,2404.6,0.29730678]
[1725508823390,1.60878493,2404.9,2404.7,0.29108]
[1725508826091,1.60878493,2404.8,2404.7,0.29108]
[1725508826294,8.97498493,2404.9,2404.8,0.29106]
[1725508826496,8.97498493,2404.9,2404.6,0.00622678]
[1725508826497,5.76718493,2404.9,2404.6,0.00622678]
[1725508826797,1.60878493,2404.9,2404.7,0.29107]
[1725508827195,5.76718493,2404.9,2404.7,0.29107]
[1725508827592,2.64808493,2405.0,2404.9,0.29105]
[1725508827994,6.80648493,2405.0,2404.9,0.29105]
[1725508828787,6.80648493,2405.0,2404.8,0.29106]
[1725508829092,2.64808493,2405.0,2404.9,0.29105]
[1725508829394,2.64176776,2405.0,2404.9,0.29105]
[1725508829593,6.80016776,2405.0,2404.9,0.29105]
[1725508830804,6.80016776,2405.0,2404.6,0.00622678]
[1725508830805,6.80016776,2405.0,2404.8,0.29105]
[1725508831003,2.64176776,2405.0,2404.8,0.29105]
[1725508831299,4.1584,2404.9,2404.8,0.29105]
[1725508831690,7.3662,2404.9,2404.8,0.29105]
[1725508831906,8.96866776,2404.9,2404.7,0.29107]
[1725508832092,6.01026776,2404.9,2404.8,0.29106]
[1725508832504,10.16866776,2404.9,2404.8,0.29106]
[1725508832907,10.16866776,2404.9,2404.7,0.29107]
[1725508833111,6.01026776,2404.9,2404.8,0.29106]
[1725508833600,10.16866776,2404.9,2404.8,0.29106]
[1725508834296,6.96086776,2404.9,2404.8,0.29106]
[1725508835699,5.3584,2404.9,2404.8,0.29106]
[1725508836205,6.96086776,2404.9,2404.8,0.29106]
[1725508837103,6.96086776,2404.9,2404.7,0.29107]
[1725508837305,2.80246776,2404.9,2404.7,0.29107]
[1725508838199,1.60246776,2404.9,2404.8,0.29106]
[1725508838599,5.76086776,2404.9,2404.8,0.29106]
[1725508839009,4.1584,2404.9,2404.8,0.29106]
[1725508840996,1.60729925,2404.9,2404.8,0.29106]
[1725508842008,1.60729925,2404.9,2404.8,1.49106]
[1725508842300,3.19003385,2405.0,2404.8,1.49106]
[1725508842301,2.64659925,2405.0,2404.9,0.29105]
[1725508842505,2.64659925,2405.0,2404.9,1.29365]
[1725508843109,2.64659925,2405.0,2404.9,0.29105]
[1725508843402,2.64803582,2405.0,2404.9,0.29105]
[1725508843602,1.0393,2405.0,2404.9,0.29105]
[1725508843800,2.64933147,2405.0,2404.9,0.29105]
[1725508844006,1.0393,2405.0,2404.9,0.29105]
[1725508844205,3.19003385,2405.0,2404.9,0.29105]
[1725508844802,3.19003385,2405.0,2404.6,0.00622678]
[1725508845003,1.61076213,2404.8,2404.6,0.00622678]
[1725508845205,3.35073385,2404.8,2404.6,0.00622678]
[1725508845508,3.22413385,2404.7,2404.6,0.00622678]
[1725508845711,3.22413385,2404.7,2404.6,0.29731678]
[1725508846304,3.22413385,2404.7,2404.2,4.4078]
[1725508846305,14.58253385,2404.7,2404.2,0.29114]
[1725508846506,14.58253385,2404.7,2403.8,3.2078]
[1725508846507,7.08257809,2404.3,2403.8,3.2078]
[1725508846709,1.61120062,2404.0,2403.8,3.49898]
[1725508846901,1.61120062,2403.9,2403.8,3.49899]
[1725508847211,1.61120062,2404.2,2403.9,0.72794]
[1725508847506,0.00623986,2404.3,2404.2,0.29114]
[1725508847713,2.15375929,2404.3,2404.2,0.29114]
[1725508849001,6.84021795,2404.3,2403.8,3.41708681]
[1725508849216,6.84021795,2404.3,2403.9,0.29117]
[1725508849217,1.6097105,2404.0,2403.9,0.29117]
[1725508849812,0.9988,2404.0,2403.9,0.29117]
[1725508850005,0.9988,2404.0,2403.8,5.44763986]
[1725508850006,2.6498105,2404.1,2404.0,0.29116]
[1725508850704,1.6097105,2404.2,2404.1,0.29115]
[1725508851012,1.61468265,2404.3,2404.2,0.29114]
[1725508853005,0.00623986,2404.3,2404.2,0.29114]
[1725508853206,1.61468265,2404.3,2404.2,0.29114]
[1725508854113,0.00623986,2404.3,2404.2,0.29114]
[1725508854505,0.00623986,2404.3,2404.2,4.45034]
[1725508854710,0.00623986,2404.3,2404.2,7.63844]
[1725508855104,0.00623986,2404.3,2404.2,3.47924]
[1725508855808,0.00623986,2404.3,2404.2,7.63844]
[1725508856008,0.00623986,2404.3,2404.2,10.84624]
[1725508856215,3.2078,2404.6,2404.5,0.2911]
[1725508856915,3.2078,2404.6,2404.3,3.6078]
[1725508856916,1.60844279,2404.7,2404.6,0.29109]
[1725508857807,1.60844279,2404.8,2404.7,0.29108]
[1725508858604,1.61468265,2404.9,2404.8,0.29106]
[1725508859217,0.00623986,2404.9,2404.8,0.29106]
[1725508859516,2.15262684,2404.9,2404.8,0.29106]
[1725508860227,2.15262684,2404.9,2404.6,0.29108]
[1725508860409,1.60980401,2404.7,2404.6,0.29108]
[1725508860716,3.23378698,2404.8,2404.4,2.1513]
[1725508861012,1.60992134,2404.7,2404.6,0.29108]
[1725508866318,3.23378698,2404.8,2404.7,0.29108]
[1725508866717,1.0874,2404.8,2404.7,0.29108]
[1725508867821,3.2368058,2404.8,2404.7,0.29108]
[1725508869215,2.1494058,2404.8,2404.7,4.44948]
[1725508869411,2.68101795,2404.9,2404.8,0.29106]
[1725508869412,0.00623986,2404.9,2404.8,0.29106]